bitfinex/quotes_BTCUSD_20250422
["timestamp","ask_amount","ask_price","bid_price","bid_amount"]
[1745298766191,0.94802627,87907.0,87906.0,0.00053752]
[1745298771474,0.94806627,87907.0,87906.0,0.00053752]
[1745298773757,0.00821718,87887.0,87886.0,0.35137837]
[1745298774056,0.00821718,87887.0,87886.0,0.36070439]
[1745298774580,0.00821718,87887.0,87886.0,0.37569767]
[1745298774921,0.00921718,87887.0,87886.0,0.37669767]
[1745298776728,0.001,87887.0,87886.0,0.37669767]
[1745298776967,0.001,87887.0,87886.0,0.49045361]
[1745298778857,0.001,87887.0,87886.0,0.48045361]
[1745298779638,0.001,87887.0,87886.0,0.47545361]
[1745298781942,4e-05,87907.0,87906.0,0.56751575]
[1745298782360,4e-05,87907.0,87906.0,0.5768197]
[1745298783774,0.00104,87907.0,87906.0,0.5768197]
[1745298791042,0.00104,87907.0,87906.0,0.00930395]
[1745298791382,0.00104,87907.0,87906.0,0.2368197]
[1745298792270,0.00104,87907.0,87906.0,0.5768197]
[1745298797217,0.00104,87907.0,87906.0,0.69057564]
[1745298799434,4e-05,87907.0,87906.0,0.69057564]
[1745298799595,0.00104,87907.0,87906.0,0.69057564]
[1745298799954,0.00104,87907.0,87906.0,0.69157564]
[1745298806351,0.00104,87907.0,87906.0,0.53828718]
[1745298806496,0.00104,87907.0,87906.0,0.54592398]
[1745298808555,0.00104,87907.0,87906.0,0.09216804]
[1745298811708,0.00104,87907.0,87906.0,0.09444283]
[1745298812082,0.00104,87907.0,87906.0,0.09216804]
[1745298821224,0.00204,87907.0,87906.0,0.09216804]
[1745298822119,0.00104,87907.0,87906.0,0.09216804]
[1745298822292,0.00204,87907.0,87906.0,0.09216804]
[1745298827863,0.00204,87907.0,87906.0,0.09444294]
[1745298830470,0.00204,87907.0,87906.0,0.09216804]
[1745298831880,0.00204,87907.0,87906.0,0.09444295]
[1745298833660,0.01025718,87907.0,87906.0,0.0086368]
[1745298833864,0.10755718,87907.0,87906.0,0.001]
[1745298834072,0.10755718,87907.0,87906.0,0.00866213]
[1745298835658,0.33507034,87907.0,87906.0,0.00866213]
[1745298836036,0.33507034,87907.0,87906.0,0.001]
[1745298836623,0.33507034,87907.0,87906.0,0.00867492]
[1745298837214,0.10755718,87907.0,87906.0,0.00867492]
[1745298844737,0.10755718,87907.0,87906.0,0.34867492]
[1745298844895,0.10755718,87907.0,87906.0,0.00867492]
[1745298848540,0.09934,87907.0,87906.0,0.00867492]
[1745298848741,0.10755718,87907.0,87906.0,0.00867492]
[1745298849258,0.05815718,87907.0,87906.0,0.00867492]
[1745298852182,0.05915718,87907.0,87906.0,0.00867492]
[1745298852592,0.05915718,87907.0,87905.0,0.51737752]
[1745298852792,0.05915718,87907.0,87906.0,0.00642624]
[1745298854389,0.05815718,87907.0,87906.0,0.00642624]
[1745298854609,0.05815718,87907.0,87905.0,0.35830809]
[1745298854893,0.05915718,87907.0,87906.0,0.0053552]
[1745298855271,0.05815718,87907.0,87906.0,0.0053552]
[1745298855675,0.05915718,87907.0,87906.0,0.0053552]
[1745298856652,0.05915718,87907.0,87906.0,0.3453552]
[1745298859772,0.05094,87907.0,87906.0,0.3453552]
[1745298860110,0.05915718,87907.0,87906.0,0.3453552]
[1745298860993,0.10535718,87907.0,87906.0,0.0053552]
[1745298861415,0.10535718,87907.0,87903.0,0.34]
[1745298861416,0.0498,87906.0,87904.0,0.01137604]
[1745298861575,0.00821718,87905.0,87904.0,0.01137604]
[1745298863515,0.00821718,87905.0,87904.0,0.01237604]
[1745298863671,0.00821718,87905.0,87904.0,0.01137604]
[1745298863990,0.00821718,87905.0,87904.0,0.01237604]
[1745298864901,0.00921718,87905.0,87904.0,0.01237604]
[1745298866854,0.00921718,87905.0,87904.0,0.001]
[1745298867190,0.05871718,87905.0,87904.0,0.001]
[1745298870164,0.05871718,87905.0,87904.0,0.00630672]
[1745298871138,0.05971718,87905.0,87904.0,0.00630672]
[1745298873926,0.05971718,87905.0,87904.0,0.23382765]
[1745298878635,0.05971718,87905.0,87904.0,0.00630672]
[1745298878863,0.22544539,87905.0,87904.0,0.00630672]
[1745298879063,0.22544539,87905.0,87904.0,0.001]
[1745298879300,0.63294538,87905.0,87904.0,0.001]
[1745298879458,0.63067311,87905.0,87904.0,0.001]
[1745298886122,0.62967311,87905.0,87904.0,0.001]
[1745298886508,0.0463,87895.0,87892.0,0.01137759]
[1745298886713,0.0463,87895.0,87893.0,0.00468677]
[1745298886714,0.33224399,87894.0,87893.0,0.00468677]
[1745298886919,0.00821718,87889.0,87888.0,0.35137811]
[1745298887151,0.05451718,87889.0,87888.0,0.34]
[1745298887442,0.05351718,87889.0,87888.0,0.34]
[1745298887821,0.05251718,87889.0,87888.0,0.34]
[1745298888009,0.05251718,87889.0,87888.0,0.341]
[1745298888237,0.05251718,87889.0,87888.0,0.001]
[1745298888442,0.05251718,87889.0,87888.0,0.002]
[1745298888652,0.05478945,87889.0,87888.0,0.002]
[1745298889250,0.10038945,87889.0,87888.0,0.002]
[1745298889737,0.19686945,87889.0,87888.0,0.002]
[1745298892940,0.19459718,87889.0,87888.0,0.002]
[1745298894956,0.32567694,87889.0,87888.0,0.002]
[1745298895166,0.43943288,87889.0,87888.0,0.002]
[1745298897921,0.84693287,87889.0,87888.0,0.002]
[1745298899119,0.05171718,87872.0,87871.0,0.34]
[1745298899316,0.05171718,87872.0,87871.0,0.34004584]
[1745298899961,0.05171718,87872.0,87871.0,0.3576745]
[1745298900324,0.05071718,87872.0,87871.0,0.3576745]
[1745298900560,0.0455,87872.0,87871.0,0.3596745]
[1745298900773,0.001,87872.0,87871.0,0.3546745]
[1745298900978,0.001,87872.0,87871.0,0.3566745]
[1745298904723,0.00721718,87872.0,87871.0,0.0216745]
[1745298906981,0.00721718,87872.0,87871.0,0.3616745]
[1745298907513,0.05291718,87872.0,87871.0,0.3616745]
[1745298908284,0.05291718,87872.0,87871.0,0.0216745]
[1745298908480,0.00721718,87872.0,87871.0,0.24928087]
[1745298910795,0.001,87872.0,87871.0,0.24928087]
[1745298912572,0.001,87872.0,87871.0,0.36303681]
[1745298916770,0.001,87872.0,87871.0,0.70303681]
[1745298925150,0.048,87890.0,87889.0,0.56755976]
[1745298925355,0.048,87890.0,87889.0,0.57893774]
[1745298925356,0.001,87890.0,87889.0,0.57893774]
[1745298926083,0.001,87890.0,87878.0,0.01137941]
[1745298926084,0.01137824,87887.0,87878.0,0.01137941]
[1745298926285,0.00621718,87881.0,87880.0,0.23487151]
[1745298926466,0.00521718,87881.0,87880.0,0.35137915]
[1745298926672,0.0496,87889.0,87887.0,0.56756494]
[1745298926673,0.05481718,87889.0,87887.0,0.56756494]
[1745298927033,0.002,87890.0,87889.0,0.22755976]
[1745298927411,0.002,87890.0,87889.0,0.56755976]
[1745298927514,0.002,87890.0,87889.0,0.34]
[1745298927931,0.001,87890.0,87889.0,0.34]
[1745298928336,0.002,87890.0,87889.0,0.34]
[1745298929170,0.003,87890.0,87889.0,0.34]
[1745298933449,0.33057435,87890.0,87889.0,0.34]
[1745298933646,0.05481718,87885.0,87880.0,0.22349236]
[1745298933889,0.00521718,87882.0,87881.0,0.22758047]
[1745298934097,0.00521718,87882.0,87881.0,0.56758047]
[1745298934657,0.05481718,87885.0,87884.0,0.5675727]
[1745298936462,0.05581718,87885.0,87884.0,0.5675727]
[1745298941350,0.00621718,87885.0,87884.0,0.5675727]
[1745298941555,0.001,87885.0,87884.0,0.5675727]
[1745298941763,0.001,87885.0,87884.0,0.68132864]
[1745298942635,0.0475,87893.0,87892.0,0.56755199]
[1745298942850,0.0485,87893.0,87892.0,0.56755199]
[1745298943830,0.05371718,87893.0,87892.0,0.34]
[1745298944171,0.05471718,87893.0,87892.0,0.34]
[1745298944429,0.00521718,87886.0,87885.0,0.23894644]
[1745298945207,0.00421718,87886.0,87885.0,0.23894644]
[1745298946062,0.00421718,87885.0,87884.0,0.01137863]
[1745298946827,0.00421718,87885.0,87883.0,0.34]
[1745298947007,0.00321718,87884.0,87883.0,0.34]
[1745298948080,0.09971718,87884.0,87883.0,0.341]
[1745298948314,0.09871718,87884.0,87883.0,0.001]
[1745298948431,0.00221718,87882.0,87880.0,0.01137915]
[1745298948836,0.00121718,87882.0,87881.0,0.22758047]
[1745298949696,0.00021718,87882.0,87881.0,0.22758047]
[1745298949898,0.00021718,87883.0,87882.0,0.34]
[1745298951077,0.00121718,87883.0,87882.0,0.34]
[1745298951277,0.00121718,87883.0,87882.0,0.341]
[1745298956878,0.2275553,87891.0,87882.0,0.341]
[1745298956879,0.00021718,87899.0,87892.0,0.34]
[1745298957081,0.0487,87901.0,87892.0,0.34]
[1745298957309,0.0491,87900.0,87892.0,0.34]
[1745298958051,0.0491,87900.0,87891.0,0.22755458]
[1745298958226,0.003,87893.0,87892.0,0.00227526]
[1745298959013,0.003,87893.0,87891.0,0.22755458]
[1745298959199,0.001,87893.0,87891.0,0.22755458]
[1745298959405,0.003,87893.0,87891.0,0.22755458]
[1745298959605,0.005,87893.0,87891.0,0.22855458]
[1745298960279,0.003,87893.0,87891.0,0.22855458]
[1745298960429,0.005,87893.0,87891.0,0.22855458]
[1745298962558,0.0491,87892.0,87891.0,0.001]
[1745298962775,0.04931718,87892.0,87891.0,0.001]
[1745298963159,0.09801718,87892.0,87891.0,0.001]
[1745298963517,0.00021718,87888.0,87886.0,0.34]
[1745298963936,0.00021718,87888.0,87887.0,0.22756479]
[1745298964135,0.00021718,87888.0,87886.0,0.34]
[1745298964342,0.34073151,87892.0,87886.0,0.5675653]
[1745298964566,0.01137785,87890.0,87886.0,0.34]
[1745298964971,0.01137798,87889.0,87886.0,0.34]
[1745298965895,0.003,87888.0,87886.0,0.34]
[1745298966237,0.001,87888.0,87886.0,0.34]
[1745298966684,0.01337798,87889.0,87886.0,0.34]
[1745298967239,0.001,87888.0,87886.0,0.34]
[1745298967417,0.003,87888.0,87886.0,0.34]
[1745298968615,0.0498,87887.0,87886.0,0.34]
[1745298969658,0.04810675,87887.0,87886.0,0.34]
[1745298970579,0.05010675,87887.0,87886.0,0.34]
[1745298970733,0.05110675,87887.0,87886.0,0.34]
[1745298972882,0.05210675,87887.0,87886.0,0.34]
[1745298973088,0.0113785,87885.0,87881.0,0.34]
[1745298973243,0.0113785,87885.0,87881.0,0.35137902]
[1745298973729,0.06348499,87887.0,87883.0,0.34]
[1745298974512,0.06348499,87887.0,87885.0,0.34]
[1745298974735,0.05210675,87887.0,87885.0,0.56756794]
[1745298975274,0.04910675,87887.0,87885.0,0.56756794]
[1745298976059,0.05010675,87887.0,87885.0,0.56756794]
[1745298976273,0.05210675,87887.0,87885.0,0.56756794]
[1745298977806,0.004,87887.0,87885.0,0.56756794]
[1745298977985,0.004,87887.0,87886.0,0.00227535]
[1745298978735,0.003,87887.0,87886.0,0.00227535]
[1745298978977,0.001,87887.0,87885.0,0.56756794]
[1745298979226,0.004,87887.0,87885.0,0.56756794]
[1745298979788,0.001,87887.0,87886.0,0.00227543]
[1745298980232,0.002,87887.0,87886.0,0.00227543]
[1745298981229,0.004,87887.0,87886.0,0.00227543]
[1745298981405,0.004,87887.0,87885.0,0.56756794]
[1745298981767,0.001,87887.0,87885.0,0.56756794]
[1745298982250,0.004,87887.0,87885.0,0.56756794]
[1745298982466,0.002,87887.0,87885.0,0.56756794]
[1745298982770,0.003,87887.0,87885.0,0.56756794]
[1745298983154,0.005,87887.0,87885.0,0.56756794]
[1745298991160,0.005,87887.0,87885.0,0.34320234]
[1745298991365,0.005,87887.0,87885.0,0.22756794]
[1745298993219,0.005,87887.0,87886.0,0.34]
[1745298994895,0.0485,87896.0,87893.0,0.01137747]
[1745298995062,0.0962,87901.0,87900.0,0.56753128]
[1745298996291,0.0982,87901.0,87900.0,0.56853128]
[1745298997871,0.1012,87901.0,87900.0,0.56853128]
[1745298999900,0.005,87901.0,87900.0,0.56853128]
[1745299001832,4e-05,87907.0,87906.0,0.22751575]
[1745299002037,0.00013359,87907.0,87906.0,0.68354659]
[1745299002261,0.00013359,87907.0,87906.0,0.68127169]
[1745299002935,0.00013359,87907.0,87906.0,0.56751575]
[1745299003363,0.00213359,87907.0,87906.0,0.56851575]
[1745299003797,0.00513359,87907.0,87906.0,0.56851575]
[1745299004211,0.00213359,87907.0,87906.0,0.56851575]
[1745299004638,0.00413359,87907.0,87906.0,0.56951575]
[1745299010231,0.00413359,87907.0,87906.0,0.342]
[1745299023701,0.04993359,87907.0,87906.0,0.342]
[1745299024565,0.32604675,87907.0,87906.0,0.002]
[1745299024795,0.09853359,87907.0,87906.0,0.002]
[1745299025216,0.32604675,87907.0,87906.0,0.002]
[1745299025424,0.09853359,87907.0,87906.0,0.342]
[1745299026458,0.09853359,87907.0,87906.0,0.002]
[1745299028378,0.00413359,87907.0,87906.0,0.002]
[1745299032803,0.27764675,87907.0,87906.0,0.002]
[1745299033180,0.32544675,87907.0,87906.0,0.002]
[1745299033384,0.09793359,87907.0,87906.0,0.002]
[1745299035909,0.09793359,87907.0,87906.0,0.56951575]
[1745299039849,0.00413359,87907.0,87906.0,0.56951575]
[1745299044427,0.00413359,87907.0,87905.0,0.34]
[1745299045311,0.00213359,87907.0,87906.0,0.22751575]
[1745299045557,0.00013359,87907.0,87906.0,0.22751575]
[1745299045739,0.00213359,87907.0,87906.0,0.22751575]
[1745299045943,0.00413359,87907.0,87906.0,0.22979071]
[1745299046515,0.00413359,87907.0,87906.0,0.56979071]
[1745299046720,0.00413359,87907.0,87906.0,0.68127169]
[1745299047169,0.00013359,87907.0,87906.0,0.68127169]
[1745299047348,0.00213359,87907.0,87906.0,0.68127169]
[1745299047783,0.00513359,87907.0,87906.0,0.68227169]
[1745299047962,0.00300001,87907.0,87906.0,0.68227169]
[1745299048759,0.0008454,87908.0,87906.0,0.68227169]
[1745299048760,0.0008454,87908.0,87907.0,0.34]
[1745299048967,0.0008454,87908.0,87907.0,0.45375594]
[1745299050598,0.0018454,87908.0,87907.0,0.45375594]
[1745299051740,0.0018454,87908.0,87907.0,0.45475594]
[1745299083263,0.0498,87917.0,87916.0,0.56748987]
[1745299084770,0.0508,87917.0,87916.0,0.56748987]
[1745299086198,0.0528,87917.0,87916.0,0.58192253]
[1745299095288,0.1006,87917.0,87916.0,0.35443266]
[1745299102274,0.0528,87917.0,87916.0,0.35443266]
[1745299107998,0.003,87917.0,87916.0,0.35443266]
[1745299108942,0.001,87917.0,87916.0,0.35443266]
[1745299109143,0.002,87917.0,87916.0,0.35443266]
[1745299109921,0.001,87917.0,87916.0,0.35443266]
[1745299110065,0.0489,87917.0,87916.0,0.35443266]
[1745299110275,0.0499,87917.0,87916.0,0.35443266]
[1745299113944,0.0499,87917.0,87916.0,0.17963549]
[1745299114145,0.0499,87917.0,87916.0,0.01443266]
[1745299114352,0.0499,87917.0,87915.0,0.23593989]
[1745299115396,0.0489,87917.0,87915.0,0.23593989]
[1745299115694,0.0499,87917.0,87915.0,0.25020121]
[1745299116009,0.0489,87917.0,87916.0,0.34]
[1745299116304,0.0499,87917.0,87916.0,0.34]
[1745299116906,0.0489,87917.0,87916.0,0.34]
[1745299117113,0.0479,87917.0,87916.0,0.34]
[1745299117253,0.0489,87917.0,87916.0,0.34]
[1745299117449,0.0499,87917.0,87916.0,0.34]
[1745299118567,0.002,87917.0,87916.0,0.34]
[1745299119217,0.0008454,87925.0,87916.0,0.34]
[1745299119218,0.0486,87935.0,87932.0,0.34]
[1745299119374,0.0386068,87935.0,87934.0,0.34]
[1745299119554,0.0004,87949.0,87936.0,0.34]
[1745299119799,0.00089733,87937.0,87936.0,0.34]
[1745299120301,0.0455,87938.0,87937.0,0.56743555]
[1745299120944,0.0004,87949.0,87940.0,0.56742779]
[1745299122090,0.0028452,87941.0,87940.0,0.56742779]
[1745299122848,0.0028452,87941.0,87940.0,0.68118373]
[1745299123046,0.0004,87949.0,87940.0,0.68118373]
[1745299123047,0.0004,87949.0,87948.0,0.2274071]
[1745299123247,0.0004,87949.0,87948.0,0.5674071]
[1745299123248,0.00045211,87949.0,87948.0,0.5674071]
[1745299124161,0.00245211,87949.0,87948.0,0.5674071]
[1745299124345,0.00345211,87949.0,87948.0,0.5674071]
[1745299125102,0.00145211,87949.0,87948.0,0.5674071]
[1745299126993,0.00145211,87949.0,87948.0,0.5684071]
[1745299130488,0.000845,87953.0,87951.0,0.34]
[1745299130774,0.000845,87953.0,87952.0,0.56739676]
[1745299133510,0.000845,87953.0,87952.0,0.34]
[1745299144660,0.09981727,87953.0,87952.0,0.34]
[1745299145581,0.097545,87953.0,87952.0,0.34]
[1745299148710,0.32493917,87953.0,87952.0,0.34]
[1745299150507,0.097545,87953.0,87952.0,0.34]
[1745299155026,0.09981727,87953.0,87952.0,0.34]
[1745299155626,0.097545,87953.0,87952.0,0.34]
[1745299165413,0.048645,87953.0,87952.0,0.34]
[1745299165611,0.000845,87953.0,87952.0,0.34]
[1745299167078,0.000845,87953.0,87952.0,0.45375594]
[1745299167281,0.0008454,87960.0,87959.0,0.56737866]
[1745299168055,0.0008458,87965.0,87963.0,0.22736832]
[1745299168256,0.0008458,87965.0,87963.0,0.56736832]
[1745299168981,0.0008458,87965.0,87963.0,0.29866705]
[1745299169319,0.0008458,87967.0,87966.0,0.22736057]
[1745299169543,0.0008458,87967.0,87966.0,0.22963394]
[1745299170934,0.00044,87979.0,87978.0,0.56732955]
[1745299171292,0.00089821,87979.0,87978.0,0.56732955]
[1745299171721,0.00089821,87979.0,87978.0,0.68108549]
[1745299173275,0.00189821,87979.0,87978.0,0.68108549]
[1745299173603,0.00089821,87979.0,87978.0,0.68108549]
[1745299173740,0.00089821,87979.0,87978.0,0.68208549]
[1745299173972,0.00089821,87979.0,87978.0,0.68108549]
[1745299174423,0.00089821,87979.0,87978.0,0.45475594]
[1745299174735,0.00089821,87979.0,87978.0,0.68108549]
[1745299176044,0.00089821,87979.0,87978.0,0.68308549]
[1745299176253,0.00089821,87979.0,87978.0,0.68208549]
[1745299176572,0.00089821,87979.0,87978.0,0.68308549]
[1745299176989,0.00089821,87979.0,87978.0,1.09878549]
[1745299177391,0.0008448,87989.0,87988.0,0.56730372]
[1745299177565,0.00098221,87989.0,87988.0,0.68105966]
[1745299178401,0.0004,88009.0,87999.0,0.5672753]
[1745299178585,0.0004,88009.0,88008.0,0.56725206]
[1745299179009,0.0004,88009.0,88008.0,0.34]
[1745299179251,0.22764948,88009.0,88008.0,0.34]
[1745299179551,0.32404948,88009.0,88008.0,0.34]
[1745299180116,0.32504948,88009.0,88008.0,0.34]
[1745299180372,0.32604948,88009.0,88008.0,0.34]
[1745299180751,0.32704948,88009.0,88008.0,0.34]
[1745299181292,0.32704948,88009.0,88008.0,0.35340162]
[1745299181497,0.32604948,88009.0,88008.0,0.35340162]
[1745299181928,0.32804948,88009.0,88008.0,0.35340162]
[1745299187821,0.32804948,88009.0,88008.0,0.01340162]
[1745299188032,0.22727272,88000.0,87999.0,0.2228192]
[1745299188274,0.01136428,87995.0,87992.0,0.00847796]
[1745299188428,0.23864899,87996.0,87992.0,0.24713535]
[1745299188641,0.23864899,87996.0,87992.0,0.23865739]
[1745299188846,0.01136415,87996.0,87992.0,0.23865739]
[1745299189804,0.01136415,87996.0,87993.0,0.34]
[1745299190134,0.01136415,87996.0,87993.0,0.35364841]
[1745299191835,0.01136415,87996.0,87993.0,0.01364841]
[1745299192140,0.01136415,87996.0,87992.0,0.01972114]
[1745299192496,0.01136415,87996.0,87993.0,0.35136454]
[1745299192711,0.05786402,87997.0,87993.0,0.35136454]
[1745299193545,0.05786402,87997.0,87993.0,0.36471698]
[1745299195283,0.22728637,87995.0,87993.0,0.01335244]
[1745299195631,0.23865065,87995.0,87992.0,0.34]
[1745299196379,0.05796454,87993.0,87990.0,0.34]
[1745299196579,0.0466,87993.0,87992.0,0.01324662]
[1745299196723,0.0466,87993.0,87991.0,0.22729589]
[1745299197135,0.0466,87993.0,87991.0,0.22729597]
[1745299198393,0.0466,87993.0,87991.0,0.24049839]
[1745299198576,0.0465,87997.0,87996.0,0.56728305]
[1745299199928,0.0475,87997.0,87996.0,0.56728305]
[1745299200133,0.001,87997.0,87996.0,0.56728305]
[1745299207763,0.048,87997.0,87996.0,0.34]
[1745299207959,0.0946,87997.0,87996.0,0.34]
[1745299211060,0.22729339,87992.0,87991.0,0.01320242]
[1745299211244,0.01136518,87988.0,87985.0,0.01136557]
[1745299211450,0.01136544,87986.0,87983.0,0.34]
[1745299211647,0.0465,87987.0,87984.0,0.12512164]
[1745299212281,0.0465,87987.0,87985.0,0.001]
[1745299212823,0.27380859,87987.0,87985.0,0.001]
[1745299213571,0.2851739,87987.0,87983.0,0.01994193]
[1745299213771,0.2851739,87987.0,87984.0,0.001]
[1745299213972,0.22731125,87986.0,87985.0,0.001]
[1745299214223,0.2851739,87987.0,87985.0,0.001]
[1745299214419,0.2851739,87987.0,87985.0,0.002]
[1745299214420,0.0465,87987.0,87985.0,0.002]
[1745299214756,0.0465,87987.0,87984.0,0.23867956]
[1745299214757,0.0465,87987.0,87984.0,0.0113657]
[1745299214898,0.0465,87987.0,87984.0,0.0123657]
[1745299215325,0.0465,87987.0,87984.0,0.0113657]
[1745299215814,0.05786531,87987.0,87984.0,0.0113657]
[1745299216401,0.05786531,87987.0,87984.0,0.23867903]
[1745299216632,0.0465,87987.0,87985.0,0.22930939]
[1745299216831,0.0465,87987.0,87985.0,0.22830939]
[1745299217030,0.0465,87987.0,87985.0,0.22730939]
[1745299217735,0.0465,87987.0,87985.0,0.22830939]
[1745299218383,0.0465,87987.0,87985.0,0.22930939]
[1745299221713,0.0465,87987.0,87986.0,0.34]
[1745299223233,0.0465,87987.0,87986.0,0.341]
[1745299223595,0.0465,87987.0,87986.0,0.342]
[1745299231327,0.0465,87987.0,87986.0,0.35231257]
[1745299234229,0.00227227,87993.0,87991.0,0.22729597]
[1745299234230,0.0471,87993.0,87991.0,0.22729597]
[1745299234465,0.0471,87993.0,87992.0,0.34941203]
[1745299235937,0.0471,87993.0,87992.0,0.00941203]
[1745299236122,0.04937227,87993.0,87990.0,0.35136492]
[1745299236247,0.04937227,87993.0,87992.0,0.34]
[1745299236454,0.23865038,87995.0,87992.0,0.34]
[1745299236652,0.23865038,87995.0,87993.0,0.00941203]
[1745299236653,0.23865009,87995.0,87993.0,0.00941203]
[1745299240260,0.00227227,87994.0,87993.0,0.00941203]
[1745299240589,0.00227227,87994.0,87990.0,0.34]
[1745299240590,0.01136454,87993.0,87990.0,0.34]
[1745299240845,0.00227227,87992.0,87990.0,0.34]
[1745299242124,0.01136428,87995.0,87990.0,0.57866195]
[1745299242425,0.01136441,87994.0,87990.0,0.57866195]
[1745299245368,0.01136441,87994.0,87991.0,0.00941203]
[1745299245726,0.01136441,87994.0,87990.0,0.57866195]
[1745299246093,0.01136441,87994.0,87991.0,0.00941203]
[1745299246374,0.01136441,87994.0,87990.0,0.57866195]
[1745299246507,0.01136441,87994.0,87992.0,0.00941203]
[1745299246715,0.0466,87997.0,87996.0,0.34]
[1745299246922,0.0466,87997.0,87996.0,0.34941203]
[1745299253122,0.0466,87997.0,87996.0,0.00941203]
[1745299253324,0.0466,87997.0,87995.0,0.22728476]
[1745299253556,0.0466,87997.0,87996.0,0.00937658]
[1745299254060,0.0466,87997.0,87995.0,0.22728476]
[1745299254186,0.0466,87997.0,87996.0,0.00937658]
[1745299254392,0.0466,87997.0,87994.0,0.01136441]
[1745299254604,0.0466,87997.0,87996.0,0.00781381]
[1745299254801,0.0466,87997.0,87994.0,0.01136441]
[1745299255118,0.0466,87997.0,87995.0,0.00781381]
[1745299255319,0.0466,87997.0,87995.0,0.23509857]
[1745299259977,0.0466,87997.0,87996.0,0.34]
[1745299260378,0.0466,87997.0,87996.0,0.34782303]
[1745299264427,0.27388047,87997.0,87996.0,0.34782303]
[1745299264613,0.0466,87997.0,87996.0,0.00782303]
[1745299264959,0.0466,87997.0,87994.0,0.57865063]
[1745299265166,0.0466,87997.0,87995.0,0.0077937]
[1745299266116,0.0466,87997.0,87995.0,0.22728389]
[1745299266252,0.0466,87997.0,87996.0,0.00649475]
[1745299266469,0.0466,87997.0,87995.0,0.22728389]
[1745299266678,0.0466,87997.0,87996.0,0.00650514]
[1745299266904,0.0466,87997.0,87995.0,0.22728389]
[1745299267126,0.0466,87997.0,87996.0,0.00650514]
[1745299267323,0.0466,87997.0,87995.0,0.22728389]
[1745299267522,0.0466,87997.0,87996.0,0.00650514]
[1745299267825,0.0466,87997.0,87995.0,0.22728389]
[1745299268038,0.0466,87997.0,87996.0,0.34650514]
[1745299290334,0.27388047,87997.0,87996.0,0.34650514]
[1745299293692,0.0466,87997.0,87996.0,0.34650514]
[1745299293812,0.27388047,87997.0,87996.0,0.34650514]
[1745299294112,0.0466,87997.0,87996.0,0.34650514]
[1745299305551,0.09477227,87997.0,87996.0,0.34650514]
[1745299305763,0.10271738,87997.0,87996.0,0.34]
[1745299306189,0.10271738,87997.0,87996.0,0.34654612]
[1745299306630,0.10044511,87997.0,87996.0,0.34654612]
[1745299306816,0.0935,87997.0,87996.0,0.34654612]
[1745299307035,0.0945,87997.0,87996.0,0.34654612]
[1745299307248,0.09677227,87997.0,87996.0,0.34654612]
[1745299307913,0.0945,87997.0,87996.0,0.34654612]
[1745299310238,0.09677227,87997.0,87996.0,0.34654612]
[1745299310777,0.0945,87997.0,87996.0,0.34654612]
[1745299311311,0.09677227,87997.0,87996.0,0.34654612]
[1745299311510,0.0945,87997.0,87996.0,0.34654612]
[1745299314879,0.09677227,87997.0,87996.0,0.34654612]
[1745299316800,0.09677227,87997.0,87996.0,0.00654612]
[1745299317093,0.0461,87989.0,87987.0,0.14626111]
[1745299317267,0.01136544,87986.0,87983.0,0.01994193]
[1745299317477,0.00227227,87985.0,87983.0,0.01994193]
[1745299317868,0.22958483,87985.0,87983.0,0.0085761]
[1745299318043,0.22958483,87985.0,87982.0,0.01331628]
[1745299318044,0.22958483,87985.0,87981.0,0.01136609]
[1745299318264,0.00227227,87985.0,87981.0,0.23868601]
[1745299318469,0.00227227,87985.0,87982.0,0.01136596]
[1745299318470,0.22958392,87985.0,87982.0,0.01136596]
[1745299318897,0.24094949,87985.0,87981.0,0.35136609]
[1745299319076,0.23867722,87985.0,87981.0,0.35136609]
[1745299319275,0.00227227,87984.0,87981.0,0.35136609]
[1745299319929,0.00227227,87984.0,87981.0,0.57868604]
[1745299320126,0.00227227,87988.0,87986.0,0.01136544]
[1745299320365,0.0461,87989.0,87986.0,0.23867408]
[1745299320559,0.0461,87989.0,87987.0,0.00648132]
[1745299321121,0.0461,87989.0,87987.0,0.23378537]
[1745299321583,0.0461,87989.0,87987.0,0.00648132]
[1745299323028,0.22730372,87988.0,87987.0,0.00648132]
[1745299323227,0.0461,87989.0,87987.0,0.00648132]
[1745299323426,0.28476637,87989.0,87984.0,0.0113657]
[1745299323628,0.01136518,87988.0,87984.0,0.0113657]
[1745299323858,0.01136531,87987.0,87984.0,0.0113657]
[1745299324418,0.01136518,87988.0,87984.0,0.0113657]
[1745299325119,0.00227227,87987.0,87984.0,0.0123657]
[1745299325529,0.24094427,87987.0,87984.0,0.001]
[1745299325728,0.22731147,87985.0,87984.0,0.001]
[1745299325945,0.04977227,87985.0,87984.0,0.001]
[1745299326157,0.20835594,87985.0,87984.0,0.001]
[1745299326371,0.22737349,87961.0,87960.0,0.14710531]
[1745299326570,0.22964576,87961.0,87960.0,0.00130241]
[1745299326803,0.22964576,87961.0,87960.0,0.01392404]
[1745299327037,0.22864576,87961.0,87960.0,0.01393036]
[1745299328717,0.22964576,87961.0,87960.0,0.01393036]
[1745299332602,0.001,87961.0,87960.0,0.01393036]
[1745299332770,0.001,87961.0,87960.0,0.35393036]
[1745299333131,0.001,87961.0,87960.0,0.35993861]
[1745299336524,0.001,87961.0,87960.0,0.01993861]
[1745299336753,0.001,87961.0,87960.0,0.35993861]
[1745299339245,0.001,87961.0,87960.0,0.01993861]
[1745299339475,0.001,87961.0,87960.0,0.35993861]
[1745299340971,0.09628,87976.0,87975.0,0.34]
[1745299341374,0.09628,87976.0,87975.0,0.34597227]
[1745299341580,0.23869753,87978.0,87975.0,0.34597227]
[1745299341776,0.22733472,87976.0,87975.0,0.34597227]
[1745299342101,0.001,87976.0,87975.0,0.00597227]
[1745299342311,0.001,87976.0,87973.0,0.35136712]
[1745299342519,0.001,87976.0,87974.0,0.00597227]
[1745299342766,0.001,87976.0,87973.0,0.01136712]
[1745299342966,0.003,87976.0,87974.0,0.00597227]
[1745299343206,0.003,87976.0,87973.0,0.01136712]
[1745299343503,0.001,87976.0,87974.0,0.00597227]
[1745299343909,0.003,87976.0,87973.0,0.01136712]
[1745299344109,0.002,87976.0,87975.0,0.00597227]